[Event "Turkish Women-ch Arzum 2022"]
[Site "Ayvalik"]
[Date "2022.03.05"]
[Round "1.8"]
[White "Acarbay, Algi"]
[Black "Gonultas, Bakriya Anastasiya"]
[Result "1-0"]
[ECO "B30"]
[WhiteElo "1992"]
[BlackElo "1232"]
[Annotator "NA"]
[PlyCount "61"]
[EventDate "2022.03.04"]
[EventType "swiss"]
[EventCountry "TUR"]
[SourceTitle "playchess.com"]
[Source "ChessBase"]
[SourceQuality "1"]
[TimeControl "5400+30"]

1. e4 {[%emt 0:01:00]} c5 {[%emt 0:01:00]} 2. Nf3 {[%emt 0:00:30]} Nc6 {[%emt 0:00:30]} 3. Bb5 {[%emt 0:00:30]} a6 {[%emt 0:00:30]} 4. Bxc6 {[%emt 0:00:30]} bxc6 {[%emt 0:00:30]} 5. O-O {[%emt 0:00:30]} e6 {[%emt 0:00:30]} 6. Re1 {[%emt 0:01:30]} g6 {[%emt 0:00:30]} 7. e5 {[%emt 0:03:30]} Bg7 {[%emt 0:01:30]} 8. Nc3 {[%emt 0:02:30]} d6 {[%emt 0:00:30]} 9. exd6 {[%emt 0:00:30]} Qxd6 {[%emt 0:00:30]} 10. Ne4 {[%emt 0:03:30]} Qe7 {[%emt 0:04:30]} 11. d3 {[%emt 0:02:30]} h6 {[%emt 0:02:30]} 12. Be3 {[%emt 0:19:30]} Bf8 {[%emt 0:11:30]} 13. Bxc5 {[%emt 0:01:30]} Qd8 {[%emt 0:01:30]} 14. Bxf8 {[%emt 0:08:30]} Kxf8 {[%emt 0:00:30]} 15. Ne5 {[%emt 0:00:30]} Qd5 {[%emt 0:07:30]} 16. d4 {[%emt 0:03:30]} c5 {[%emt 0:04:30]} 17. Nxc5 {[%emt 0:01:30]} Nf6 {[%emt 0:01:30]} 18. c4 {[%emt 0:01:30]} Qd6 {[%emt 0:00:30]} 19. Qf3 {[%emt 0:00:30]} Kg7 {[%emt 0:01:30]} 20. Qxa8 {[%emt 0:01:30]} Qxd4 {[%emt 0:00:30]} 21. Qa7 {[%emt 0:00:30]} Nd7 {[%emt 0:01:30]} 22. Nxe6+ {[%emt 0:00:30]} fxe6 {[%emt 0:01:30]} 23. Qxd4 {[%emt 0:00:30]} Nf6 {[%emt 0:00:30]} 24. Qd3 {[%emt 0:00:30]} Rh7 {[%emt 0:04:30]} 25. Qxg6+ {[%emt 0:01:30]} Kh8 {[%emt 0:00:30]} 26. Qxf6+ {[%emt 0:00:00]} Kg8 {[%emt 0:00:00]} 27. Qd8+ {[%emt 0:00:00]} Kg7 {[%emt 0:00:00]} 28. Qe7+ {[%emt 0:00:30]} Kg8 {[%emt 0:00:00]} 29. Qe8+ {[%emt 0:00:30]} Kg7 {[%emt 0:00:00]} 30. Qf7+ {[%emt 0:00:00]} Kh8 {[%emt 0:00:30]} 31. Qf8# {[%emt 0:00:00]} 1-0

[Event "Turkish Women-ch Arzum 2022"]
[Site "Ayvalik"]
[Date "2022.03.05"]
[Round "1.9"]
[White "Senkal, Defne"]
[Black "Gokbulut, Yulia"]
[Result "0-1"]
[ECO "C01"]
[WhiteElo "1247"]
[BlackElo "1902"]
[Annotator "NA"]
[PlyCount "122"]
[EventDate "2022.03.04"]
[EventType "swiss"]
[EventCountry "TUR"]
[SourceTitle "playchess.com"]
[Source "ChessBase"]
[SourceQuality "1"]
[TimeControl "5400+30"]

1. e4 {[%emt 0:01:00]} e6 {[%emt 0:01:00]} 2. d4 {[%emt 0:00:30]} d5 {[%emt 0:00:00]} 3. Nc3 {[%emt 0:00:00]} Bb4 {[%emt 0:00:00]} 4. exd5 {[%emt 0:01:00]} exd5 {[%emt 0:00:00]} 5. Bd3 {[%emt 0:00:00]} Ne7 {[%emt 0:01:00]} 6. Qf3 {[%emt 0:09:00]} Be6 {[%emt 0:03:30]} 7. Nge2 {[%emt 0:01:30]} Qd7 {[%emt 0:03:30]} 8. h3 {[%emt 0:05:30]} Nbc6 {[%emt 0:01:30]} 9. O-O {[%emt 0:03:30]} f6 {[%emt 0:04:30]} 10. Be3 {[%emt 0:03:30]} O-O-O {[%emt 0:03:30]} 11. Nf4 {[%emt 0:04:30]} Bf7 {[%emt 0:04:30]} 12. a3 {[%emt 0:03:30]} Bxc3 {[%emt 0:01:30]} 13. bxc3 {[%emt 0:00:00]} h5 {[%emt 0:01:30]} 14. Ne2 {[%emt 0:03:00]} h4 {[%emt 0:06:30]} 15. Qg4 {[%emt 0:13:30]} Be6 {[%emt 0:01:30]} 16. Qf3 {[%emt 0:00:30]} Rdf8 {[%emt 0:03:30]} 17. Nf4 {[%emt 0:02:30]} Bf7 {[%emt 0:06:30]} 18. Qg4 {[%emt 0:02:30]} Qxg4 {[%emt 0:01:30]} 19. hxg4 {[%emt 0:02:30]} g5 {[%emt 0:03:30]} 20. Nh3 {[%emt 0:02:30]} Be6 {[%emt 0:01:30]} 21. Be2 {[%emt 0:03:30]} Rhg8 {[%emt 0:09:30]} 22. Rab1 {[%emt 0:03:30]} Na5 {[%emt 0:01:30]} 23. Rfe1 {[%emt 0:05:30]} Kd7 {[%emt 0:03:30]} 24. a4 {[%emt 0:09:30]} b6 {[%emt 0:04:30]} 25. f3 {[%emt 0:06:25]} Nc8 {[%emt 0:06:30]} 26. Bd3 {[%emt 0:05:41]} Nd6 {[%emt 0:00:30]} 27. Kh2 {[%emt 0:00:33]} Nac4 {[%emt 0:01:30]} 28. Bc1 {[%emt 0:03:35]} Re8 {[%emt 0:03:30]} 29. Be3 {[%emt 0:02:02]} Nxe3 {[%emt 0:04:26]} 30. Rxe3 {[%emt 0:00:06]} a5 {[%emt 0:01:57]} 31. Rbe1 {[%emt 0:00:30]} Bf7 {[%emt 0:01:38]} 32. Nf2 {[%emt 0:00:39]} Rxe3 {[%emt 0:00:54]} 33. Rxe3 {[%emt 0:00:05]} Re8 {[%emt 0:01:07]} 34. Nd1 {[%emt 0:01:16]} Rxe3 {[%emt 0:01:14]} 35. Nxe3 {[%emt 0:00:05]} b5 {[%emt 0:01:25]} 36. Nf1 {[%emt 0:03:06]} bxa4 {[%emt 0:00:21]} 37. Nd2 {[%emt 0:00:10]} a3 {[%emt 0:01:19]} 38. Nb3 {[%emt 0:00:08]} a4 {[%emt 0:01:05]} 39. Na1 {[%emt 0:00:04]} Kc6 {[%emt 0:00:38]} 40. Kg1 {[%emt 0:00:54]} Nb5 {[%emt 0:00:24]} 41. Kf2 {[%emt 0:01:31]} Nxc3 {[%emt 0:00:29]} 42. Ke3 {[%emt 0:00:19]} Nd1+ {[%emt 0:01:00]} 43. Kd2 {[%emt 0:00:29]} Nb2 {[%emt 0:00:14]} 44. Be2 {[%emt 0:00:25]} Nc4+ {[%emt 0:00:00]} 45. Bxc4 {[%emt 0:02:07]} dxc4 {[%emt 0:00:00]} 46. c3 {[%emt 0:00:00]} a2 {[%emt 0:00:00]} 47. Ke3 {[%emt 0:00:17]} Bg6 {[%emt 0:00:00]} 48. Kf2 {[%emt 0:01:06]} Kd5 {[%emt 0:00:10]} 49. Kg1 {[%emt 0:00:22]} Bd3 {[%emt 0:00:29]} 50. Kf2 {[%emt 0:00:37]} c5 {[%emt 0:00:17]} 51. dxc5 {[%emt 0:00:09]} Kxc5 {[%emt 0:00:04]} 52. Ke3 {[%emt 0:00:04]} Kd5 {[%emt 0:00:33]} 53. Kf2 {[%emt 0:00:34]} Ke5 {[%emt 0:00:17]} 54. Ke3 {[%emt 0:01:20]} f5 {[%emt 0:00:14]} 55. gxf5 {[%emt 0:00:10]} Kxf5 {[%emt 0:00:02]} 56. Kf2 {[%emt 0:00:18]} Kf4 {[%emt 0:00:05]} 57. g3+ {[%emt 0:01:13]} hxg3+ {[%emt 0:00:05]} 58. Kg2 {[%emt 0:00:20]} a3 {[%emt 0:00:07]} 59. Kh1 {[%emt 0:00:42]} Kxf3 {[%emt 0:00:30]} 60. Kg1 {[%emt 0:00:00]} g2 {[%emt 0:00:00]} 61. Kh2 {[%emt 0:00:31]} Kf2 {[%emt 0:00:00]} 0-1

[Event "Turkish Women-ch Arzum 2022"]
[Site "Ayvalik"]
[Date "2022.03.05"]
[Round "1.11"]
[White "Engel, Ecrin Tuana"]
[Black "Hereklioglu, Sude"]
[Result "1/2-1/2"]
[ECO "A48"]
[WhiteElo "1250"]
[BlackElo "1924"]
[Annotator "NA"]
[PlyCount "124"]
[EventDate "2022.03.04"]
[EventType "swiss"]
[EventCountry "TUR"]
[SourceTitle "playchess.com"]
[Source "ChessBase"]
[SourceQuality "1"]
[TimeControl "5400+30"]

1. d4 {[%emt 0:01:00]} Nf6 {[%emt 0:02:00]} 2. Bf4 {[%emt 0:00:00]} d6 {[%emt 0:00:30]} 3. Nf3 {[%emt 0:00:00]} g6 {[%emt 0:00:30]} 4. e3 {[%emt 0:00:30]} Bg7 {[%emt 0:00:30]} 5. c4 {[%emt 0:00:00]} Bg4 {[%emt 0:02:30]} 6. Be2 {[%emt 0:02:00]} Nbd7 {[%emt 0:02:30]} 7. h3 {[%emt 0:02:30]} Bxf3 {[%emt 0:00:30]} 8. Bxf3 {[%emt 0:00:30]} c6 {[%emt 0:00:30]} 9. Nc3 {[%emt 0:00:30]} e5 {[%emt 0:00:30]} 10. dxe5 {[%emt 0:01:30]} dxe5 {[%emt 0:00:30]} 11. Bg3 {[%emt 0:00:30]} O-O {[%emt 0:02:30]} 12. O-O {[%emt 0:01:30]} Qe7 {[%emt 0:04:30]} 13. Rc1 {[%emt 0:09:30]} Nc5 {[%emt 0:23:30]} 14. b4 {[%emt 0:14:30]} Rfd8 {[%emt 0:05:30]} 15. Qc2 {[%emt 0:05:30]} Nd3 {[%emt 0:00:30]} 16. Rb1 {[%emt 0:00:30]} e4 {[%emt 0:08:30]} 17. Be2 {[%emt 0:02:30]} Nxb4 {[%emt 0:10:30]} 18. Qb3 {[%emt 0:01:30]} a5 {[%emt 0:00:30]} 19. a3 {[%emt 0:01:30]} Nd3 {[%emt 0:00:30]} 20. Qxb7 {[%emt 0:00:30]} Qxa3 {[%emt 0:02:30]} 21. Rb3 {[%emt 0:02:30]} Qc5 {[%emt 0:04:30]} 22. Bc7 {[%emt 0:05:30]} Re8 {[%emt 0:02:30]} 23. Rb6 {[%emt 0:03:30]} Qxc4 {[%emt 0:05:30]} 24. Rxc6 {[%emt 0:00:30]} Qb4 {[%emt 0:00:30]} 25. Qxb4 {[%emt 0:07:30]} axb4 {[%emt 0:03:44]} 26. Nxe4 {[%emt 0:02:30]} Nxe4 {[%emt 0:00:30]} 27. Bxd3 {[%emt 0:00:30]} b3 {[%emt 0:00:02]} 28. f3 {[%emt 0:09:30]} Nd2 {[%emt 0:07:53]} 29. Rd1 {[%emt 0:00:30]} Ra2 {[%emt 0:01:07]} 30. Ba5 {[%emt 0:07:53]} Rxa5 {[%emt 0:00:37]} 31. Rxd2 {[%emt 0:00:14]} b2 {[%emt 0:03:34]} 32. Bb1 {[%emt 0:01:35]} Ra1 {[%emt 0:01:50]} 33. Rd1 {[%emt 0:00:39]} Rxe3 {[%emt 0:00:39]} 34. Rc8+ {[%emt 0:01:52]} Bf8 {[%emt 0:00:03]} 35. Rb8 {[%emt 0:00:21]} Rd3 {[%emt 0:02:48]} 36. Rxd3 {[%emt 0:03:43]} Rxb1+ {[%emt 0:00:03]} 37. Kf2 {[%emt 0:00:02]} Kg7 {[%emt 0:00:14]} 38. Rdb3 {[%emt 0:08:43]} Bc5+ {[%emt 0:00:11]} 39. Ke2 {[%emt 0:00:13]} Bd4 {[%emt 0:00:09]} 40. Kd3 {[%emt 0:01:09]} Be5 {[%emt 0:02:06]} 41. R8b5 {[%emt 0:02:44]} Bf6 {[%emt 0:00:16]} 42. f4 {[%emt 0:00:29]} Rf1 {[%emt 0:01:48]} 43. Ke3 {[%emt 0:02:03]} h5 {[%emt 0:00:57]} 44. Rxb2 {[%emt 0:00:36]} Bxb2 {[%emt 0:00:09]} 45. Rxb2 {[%emt 0:00:00]} h4 {[%emt 0:00:20]} 46. Rb5 {[%emt 0:01:12]} f5 {[%emt 0:01:06]} 47. Rb7+ {[%emt 0:00:30]} Kh6 {[%emt 0:00:06]} 48. Rb8 {[%emt 0:00:43]} Ra1 {[%emt 0:00:11]} 49. Rb4 {[%emt 0:00:21]} Ra3+ {[%emt 0:00:11]} 50. Kf2 {[%emt 0:00:14]} g5 {[%emt 0:01:06]} 51. fxg5+ {[%emt 0:00:30]} Kxg5 {[%emt 0:00:00]} 52. Rb8 {[%emt 0:00:41]} Rc3 {[%emt 0:00:00]} 53. Rg8+ {[%emt 0:00:09]} Kf4 {[%emt 0:00:00]} 54. Ke2 {[%emt 0:00:29]} Rc2+ {[%emt 0:01:12]} 55. Kd3 {[%emt 0:00:35]} Ra2 {[%emt 0:00:35]} 56. Rg7 {[%emt 0:00:39]} Ra3+ {[%emt 0:01:01]} 57. Ke2 {[%emt 0:00:56]} Rg3 {[%emt 0:00:13]} 58. Rxg3 {[%emt 0:00:12]} Kxg3 {[%emt 0:00:30]} 59. Kf1 {[%emt 0:00:00]} f4 {[%emt 0:00:15]} 60. Kg1 {[%emt 0:00:00]} f3 {[%emt 0:00:12]} 61. gxf3 {[%emt 0:00:21]} Kxf3 {[%emt 0:00:30]} 62. Kh2 {[%emt 0:00:00]} Kf2 {[%emt 0:00:00]} 1/2-1/2

[Event "Turkish Women-ch Arzum 2022"]
[Site "Ayvalik"]
[Date "2022.03.05"]
[Round "1.12"]
[White "Demirtas, Hafize"]
[Black "Olmez, Sude"]
[Result "1-0"]
[ECO "C90"]
[WhiteElo "1779"]
[BlackElo "1170"]
[Annotator "NA"]
[PlyCount "43"]
[EventDate "2022.03.04"]
[EventType "swiss"]
[EventCountry "TUR"]
[SourceTitle "playchess.com"]
[Source "ChessBase"]
[SourceQuality "1"]
[TimeControl "5400+30"]

1. e4 {[%emt 0:01:00]} e5 {[%emt 0:01:00]} 2. Nf3 {[%emt 0:00:30]} Nc6 {[%emt 0:00:30]} 3. Bb5 {[%emt 0:00:00]} a6 {[%emt 0:00:00]} 4. Ba4 {[%emt 0:00:00]} Nf6 {[%emt 0:00:00]} 5. O-O {[%emt 0:00:00]} b5 {[%emt 0:02:30]} 6. Bb3 {[%emt 0:00:00]} Be7 {[%emt 0:00:00]} 7. Re1 {[%emt 0:00:00]} O-O {[%emt 0:00:00]} 8. d3 {[%emt 0:00:00]} d6 {[%emt 0:00:30]} 9. c3 {[%emt 0:00:00]} Bb7 {[%emt 0:02:30]} 10. Nbd2 {[%emt 0:00:00]} Na5 {[%emt 0:04:30]} 11. Bc2 {[%emt 0:00:00]} c5 {[%emt 0:00:00]} 12. d4 {[%emt 0:00:00]} exd4 {[%emt 0:03:00]} 13. cxd4 {[%emt 0:00:00]} Nc6 {[%emt 0:10:30]} 14. e5 {[%emt 0:00:00]} dxe5 {[%emt 0:01:30]} 15. dxe5 {[%emt 0:00:30]} Nd5 {[%emt 0:03:30]} 16. Ne4 {[%emt 0:01:30]} c4 {[%emt 0:13:30]} 17. a3 {[%emt 0:00:30]} Nc7 {[%emt 0:10:30]} 18. Bg5 {[%emt 0:09:30]} Bxg5 {[%emt 0:07:30]} 19. Nfxg5 {[%emt 0:04:30]} h6 {[%emt 0:01:30]} 20. Qh5 {[%emt 0:14:30]} Ne6 {[%emt 0:10:30]} 21. Nxe6 {[%emt 0:00:30]} fxe6 {[%emt 0:00:30]} 22. Nd6 {[%emt 0:00:00]} 1-0

[Event "Turkish Women-ch Arzum 2022"]
[Site "Ayvalik"]
[Date "2022.03.05"]
[Round "1.13"]
[White "Sezer, Ipek"]
[Black "Can, Isil"]
[Result "0-1"]
[ECO "D43"]
[WhiteElo "1329"]
[BlackElo "1875"]
[Annotator "NA"]
[PlyCount "54"]
[EventDate "2022.03.04"]
[EventType "swiss"]
[EventCountry "TUR"]
[SourceTitle "playchess.com"]
[Source "ChessBase"]
[SourceQuality "1"]
[TimeControl "5400+30"]

1. d4 {[%emt 0:01:00]} d5 {[%emt 0:01:00]} 2. c4 {[%emt 0:00:30]} c6 {[%emt 0:00:30]} 3. Nc3 {[%emt 0:00:00]} Nf6 {[%emt 0:00:00]} 4. Nf3 {[%emt 0:00:00]} e6 {[%emt 0:00:00]} 5. a4 {[%emt 0:00:30]} Bd6 {[%emt 0:00:00]} 6. Bg5 {[%emt 0:00:30]} Nbd7 {[%emt 0:00:00]} 7. e3 {[%emt 0:01:30]} Qa5 {[%emt 0:01:30]} 8. Bd3 {[%emt 0:04:30]} Ne4 {[%emt 0:03:30]} 9. Rc1 {[%emt 0:02:30]} Nxg5 {[%emt 0:03:30]} 10. Nxg5 {[%emt 0:00:30]} dxc4 {[%emt 0:00:30]} 11. Nge4 {[%emt 0:04:30]} Be7 {[%emt 0:03:30]} 12. Bxc4 {[%emt 0:00:30]} O-O {[%emt 0:01:30]} 13. O-O {[%emt 0:02:30]} a6 {[%emt 0:00:30]} 14. Ne2 {[%emt 0:07:30]} b5 {[%emt 0:02:30]} 15. Bb3 {[%emt 0:01:30]} Qb6 {[%emt 0:00:30]} 16. Nf4 {[%emt 0:05:30]} c5 {[%emt 0:05:30]} 17. d5 {[%emt 0:05:30]} c4 {[%emt 0:02:30]} 18. d6 {[%emt 0:06:30]} Bf6 {[%emt 0:04:30]} 19. Ba2 {[%emt 0:01:30]} Bb7 {[%emt 0:09:30]} 20. Ng3 {[%emt 0:05:30]} Bxb2 {[%emt 0:26:30]} 21. Rb1 {[%emt 0:01:30]} Be5 {[%emt 0:00:00]} 22. Nge2 {[%emt 0:08:30]} Qc6 {[%emt 0:01:00]} 23. h4 {[%emt 0:08:30]} Bxf4 {[%emt 0:04:30]} 24. Nxf4 {[%emt 0:00:30]} e5 {[%emt 0:00:00]} 25. Qd5 {[%emt 0:04:30]} exf4 {[%emt 0:03:00]} 26. Qxc6 {[%emt 0:00:30]} Bxc6 {[%emt 0:00:30]} 27. exf4 {[%emt 0:01:30]} Nb6 {[%emt 0:00:30]} 0-1

[Event "Turkish Women-ch Arzum 2022"]
[Site "Ayvalik"]
[Date "2022.03.05"]
[Round "1.14"]
[White "Catal, Uktenur"]
[Black "Yazici, Zumral"]
[Result "1-0"]
[ECO "D37"]
[WhiteElo "1832"]
[BlackElo "1229"]
[Annotator "NA"]
[PlyCount "103"]
[EventDate "2022.03.04"]
[EventType "swiss"]
[EventCountry "TUR"]
[SourceTitle "playchess.com"]
[Source "ChessBase"]
[SourceQuality "1"]
[TimeControl "5400+30"]

1. d4 {[%emt 0:01:00]} d5 {[%emt 0:01:00]} 2. c4 {[%emt 0:00:30]} e6 {[%emt 0:00:00]} 3. Nf3 {[%emt 0:00:00]} a6 {[%emt 0:00:00]} 4. cxd5 {[%emt 0:00:00]} exd5 {[%emt 0:00:30]} 5. Nc3 {[%emt 0:00:00]} Nf6 {[%emt 0:03:30]} 6. Bg5 {[%emt 0:00:00]} Be7 {[%emt 0:09:30]} 7. e3 {[%emt 0:00:00]} c6 {[%emt 0:05:30]} 8. Bd3 {[%emt 0:00:00]} Be6 {[%emt 0:17:30]} 9. Qc2 {[%emt 0:00:30]} h6 {[%emt 0:00:30]} 10. Bh4 {[%emt 0:00:30]} Nbd7 {[%emt 0:03:30]} 11. O-O {[%emt 0:03:30]} O-O {[%emt 0:02:30]} 12. Rab1 {[%emt 0:01:30]} Rc8 {[%emt 0:12:30]} 13. b4 {[%emt 0:03:30]} Nb6 {[%emt 0:06:30]} 14. a4 {[%emt 0:07:30]} g5 {[%emt 0:10:30]} 15. Bg3 {[%emt 0:00:30]} Kh8 {[%emt 0:08:01]} 16. Be5 {[%emt 0:09:30]} Nbd7 {[%emt 0:01:44]} 17. a5 {[%emt 0:01:30]} g4 {[%emt 0:02:31]} 18. Bxf6+ {[%emt 0:02:30]} Bxf6 {[%emt 0:01:39]} 19. Nd2 {[%emt 0:00:30]} Rg8 {[%emt 0:01:33]} 20. Ne2 {[%emt 0:01:30]} Bg5 {[%emt 0:02:31]} 21. Ng3 {[%emt 0:01:30]} Nf6 {[%emt 0:03:05]} 22. Nb3 {[%emt 0:10:30]} Rc7 {[%emt 0:04:41]} 23. Nc5 {[%emt 0:00:30]} Bc8 {[%emt 0:00:00]} 24. Ne2 {[%emt 0:09:30]} Re7 {[%emt 0:01:52]} 25. Nc3 {[%emt 0:02:30]} Qd6 {[%emt 0:01:08]} 26. N3a4 {[%emt 0:00:30]} h5 {[%emt 0:00:33]} 27. Nb6 {[%emt 0:06:30]} Be6 {[%emt 0:00:22]} 28. g3 {[%emt 0:01:30]} h4 {[%emt 0:00:42]} 29. Kg2 {[%emt 0:00:30]} Nh5 {[%emt 0:00:36]} 30. Rbe1 {[%emt 0:04:30]} h3+ {[%emt 0:00:30]} 31. Kg1 {[%emt 0:00:30]} Rf8 {[%emt 0:00:30]} 32. e4 {[%emt 0:05:30]} f6 {[%emt 0:00:30]} 33. e5 {[%emt 0:01:30]} Qc7 {[%emt 0:00:29]} 34. Nxe6 {[%emt 0:01:30]} Rxe6 {[%emt 0:00:30]} 35. Bf5 {[%emt 0:00:30]} Re7 {[%emt 0:00:00]} 36. Bxg4 {[%emt 0:00:00]} Rh7 {[%emt 0:00:06]} 37. Bxh5 {[%emt 0:02:00]} Rxh5 {[%emt 0:00:02]} 38. Nxd5 {[%emt 0:01:30]} Qd7 {[%emt 0:00:09]} 39. Nxf6 {[%emt 0:02:30]} Bxf6 {[%emt 0:00:15]} 40. exf6 {[%emt 0:00:30]} Rxf6 {[%emt 0:01:03]} 41. Qe4 {[%emt 0:00:00]} Rf8 {[%emt 0:00:10]} 42. Qe7 {[%emt 0:03:00]} Rf7 {[%emt 0:00:10]} 43. Qxd7 {[%emt 0:00:30]} Rxd7 {[%emt 0:00:30]} 44. Re4 {[%emt 0:00:00]} Rhd5 {[%emt 0:00:21]} 45. Rh4+ {[%emt 0:00:00]} Rh7 {[%emt 0:00:30]} 46. Rxh7+ {[%emt 0:00:30]} Kxh7 {[%emt 0:00:00]} 47. Rd1 {[%emt 0:00:30]} Kg6 {[%emt 0:00:00]} 48. f3 {[%emt 0:00:30]} Kf6 {[%emt 0:00:00]} 49. Kf2 {[%emt 0:00:30]} Rb5 {[%emt 0:00:00]} 50. Rb1 {[%emt 0:00:30]} Ke6 {[%emt 0:00:27]} 51. Ke3 {[%emt 0:00:30]} Kd5 {[%emt 0:00:00]} 52. g4 {[%emt 0:00:00]} 1-0

[Event "Turkish Women-ch Arzum 2022"]
[Site "Ayvalik"]
[Date "2022.03.05"]
[Round "1.15"]
[White "Oztatar, Meleknaz"]
[Black "Akat, Elifnaz"]
[Result "0-1"]
[ECO "E61"]
[WhiteElo "1063"]
[BlackElo "1673"]
[Annotator "NA"]
[PlyCount "56"]
[EventDate "2022.03.04"]
[EventType "swiss"]
[EventCountry "TUR"]
[SourceTitle "playchess.com"]
[Source "ChessBase"]
[SourceQuality "1"]
[TimeControl "5400+30"]

1. d4 {[%emt 0:01:00]} c5 {[%emt 0:01:00]} 2. e3 {[%emt 0:00:30]} Nf6 {[%emt 0:00:30]} 3. Nf3 {[%emt 0:00:00]} g6 {[%emt 0:01:30]} 4. c4 {[%emt 0:01:00]} Bg7 {[%emt 0:00:00]} 5. Nc3 {[%emt 0:01:30]} O-O {[%emt 0:01:00]} 6. a3 {[%emt 0:03:30]} cxd4 {[%emt 0:00:30]} 7. exd4 {[%emt 0:00:30]} d5 {[%emt 0:01:30]} 8. c5 {[%emt 0:00:30]} Nc6 {[%emt 0:05:30]} 9. h3 {[%emt 0:06:30]} Re8 {[%emt 0:07:30]} 10. Be2 {[%emt 0:06:30]} Ne4 {[%emt 0:03:30]} 11. Be3 {[%emt 0:15:30]} e5 {[%emt 0:07:30]} 12. dxe5 {[%emt 0:04:30]} Nxc3 {[%emt 0:00:30]} 13. bxc3 {[%emt 0:00:30]} Nxe5 {[%emt 0:00:30]} 14. Nxe5 {[%emt 0:02:30]} Bxe5 {[%emt 0:00:30]} 15. Bd4 {[%emt 0:01:30]} Qg5 {[%emt 0:06:30]} 16. Kf1 {[%emt 0:11:30]} Bd7 {[%emt 0:09:30]} 17. h4 {[%emt 0:04:30]} Qf6 {[%emt 0:00:30]} 18. g4 {[%emt 0:03:30]} Bxd4 {[%emt 0:04:30]} 19. cxd4 {[%emt 0:00:30]} Re4 {[%emt 0:00:00]} 20. Qb3 {[%emt 0:04:30]} Rae8 {[%emt 0:04:00]} 21. Bf3 {[%emt 0:01:30]} Rf4 {[%emt 0:01:30]} 22. Kg2 {[%emt 0:02:30]} Bxg4 {[%emt 0:00:30]} 23. Bxg4 {[%emt 0:00:30]} Rxg4+ {[%emt 0:00:00]} 24. Kf1 {[%emt 0:00:30]} Rxh4 {[%emt 0:00:00]} 25. Rxh4 {[%emt 0:01:30]} Qxh4 {[%emt 0:00:00]} 26. Kg2 {[%emt 0:00:30]} Qg4+ {[%emt 0:02:00]} 27. Qg3 {[%emt 0:00:30]} Qxd4 {[%emt 0:00:30]} 28. Rb1 {[%emt 0:00:30]} Qe4+ {[%emt 0:00:00]} 0-1

[Event "Turkish Women-ch Arzum 2022"]
[Site "Ayvalik"]
[Date "2022.03.05"]
[Round "1.16"]
[White "Gur, Tuba"]
[Black "Mullakutukcu, Ela"]
[Result "1-0"]
[ECO "A46"]
[WhiteElo "1750"]
[BlackElo "1154"]
[Annotator "NA"]
[PlyCount "63"]
[EventDate "2022.03.04"]
[EventType "swiss"]
[EventCountry "TUR"]
[SourceTitle "playchess.com"]
[Source "ChessBase"]
[SourceQuality "1"]
[TimeControl "5400+30"]

1. d4 {[%emt 0:01:00]} c5 {[%emt 0:01:00]} 2. e3 {[%emt 0:00:30]} Nf6 {[%emt 0:09:30]} 3. Nf3 {[%emt 0:00:00]} e6 {[%emt 0:01:30]} 4. Bd3 {[%emt 0:02:00]} Nc6 {[%emt 0:03:30]} 5. O-O {[%emt 0:00:30]} Be7 {[%emt 0:00:30]} 6. b3 {[%emt 0:00:30]} O-O {[%emt 0:02:30]} 7. Bb2 {[%emt 0:00:30]} b6 {[%emt 0:03:30]} 8. Ne5 {[%emt 0:06:30]} Bb7 {[%emt 0:01:30]} 9. c4 {[%emt 0:04:30]} d6 {[%emt 0:02:30]} 10. Nxc6 {[%emt 0:04:30]} Bxc6 {[%emt 0:00:30]} 11. Qc2 {[%emt 0:00:30]} h6 {[%emt 0:03:30]} 12. f4 {[%emt 0:03:30]} Qc7 {[%emt 0:05:30]} 13. Nd2 {[%emt 0:01:30]} Ng4 {[%emt 0:04:30]} 14. Rae1 {[%emt 0:02:30]} Rad8 {[%emt 0:05:30]} 15. Nf3 {[%emt 0:11:30]} Ba8 {[%emt 0:02:30]} 16. e4 {[%emt 0:20:30]} Nf6 {[%emt 0:00:30]} 17. d5 {[%emt 0:00:30]} exd5 {[%emt 0:03:30]} 18. exd5 {[%emt 0:02:30]} b5 {[%emt 0:03:30]} 19. Qe2 {[%emt 0:03:30]} bxc4 {[%emt 0:02:30]} 20. bxc4 {[%emt 0:00:30]} Rb8 {[%emt 0:00:30]} 21. Bb1 {[%emt 0:08:30]} Bd8 {[%emt 0:00:30]} 22. Qc2 {[%emt 0:00:30]} g6 {[%emt 0:01:30]} 23. f5 {[%emt 0:02:30]} g5 {[%emt 0:01:30]} 24. Qd2 {[%emt 0:04:15]} Kh7 {[%emt 0:01:30]} 25. h4 {[%emt 0:00:37]} g4 {[%emt 0:01:30]} 26. Ng5+ {[%emt 0:01:01]} hxg5 {[%emt 0:01:30]} 27. hxg5 {[%emt 0:00:04]} Ne8 {[%emt 0:01:30]} 28. f6+ {[%emt 0:00:00]} Kg8 {[%emt 0:01:30]} 29. Qd3 {[%emt 0:00:00]} Nxf6 {[%emt 0:01:30]} 30. Rxf6 {[%emt 0:00:00]} Bxf6 {[%emt 0:00:30]} 31. gxf6 {[%emt 0:00:03]} Rxb2 {[%emt 0:00:30]} 32. Qh7# {[%emt 0:00:30]} 1-0